fUSD/lending_fUSD_20250614
["ID","MTS","AMOUNT","RATE_DAILY","PERIOD"]
[365803388,1749924638487,-326.69,0.000166,2]
[365803390,1749924638497,-250.0,0.00016603,2]
[365803392,1749924638507,-168.0,0.00016614,2]
[365803394,1749924638517,-168.0,0.00016668,2]
[365803396,1749924638527,-278.05609054,0.00016728,2]
[365803398,1749924638545,-166.71,0.00016732,2]
[365803400,1749924638554,-868.22992952,0.00016755,2]
[365803402,1749924638564,-563.0,0.00016789,2]
[365803404,1749924638574,-2000.0,0.00016864,2]
[365803405,1749924638583,-1317.756,0.0001688,2]
[365803407,1749924638592,-11820.2342,0.00016896,2]
[365803409,1749924638602,-1000.0,0.00016897,2]
[365803411,1749924638611,-256.73199719,0.00016899,2]
[365803413,1749924638621,-155.0,0.00016899,2]
[365803415,1749924638630,-3869.236,0.00016899,2]
[365803417,1749924638642,-729.8248,0.000169,2]
[365803419,1749924638655,-24808.4155,0.000169,2]
[365803420,1749924638664,-18102.671,0.000169,2]
[365803422,1749924638673,-208.36966566,0.000169,2]
[365803424,1749924638683,-5000.0,0.000169,2]
[365803426,1749924638692,-369.73614512,0.000169,2]
[365803428,1749924638701,-228.37495915,0.000169,2]
[365803430,1749924638711,-1096.41345355,0.000169,2]
[365803432,1749924638720,-2.02459808,0.000169,2]
[365803434,1749924638733,-204.95677487,0.000169,2]
[365803436,1749924638742,-454.24859832,0.000169,2]
[365803438,1749924638750,-1916.64783879,0.000169,2]
[365803440,1749924638759,-153.64068744,0.000169,2]
[365803441,1749924638769,-13582.22725905,0.000169,2]
[365803443,1749924638779,-833.63237626,0.00016965,2]
[365803445,1749924638788,-211.0,0.00016971,2]
[365803447,1749924638797,-531.46368335,0.00016973,2]
[365803449,1749924638806,-500.0,0.00016973,2]
[365803451,1749924638815,-500.0,0.00016973,2]
[365803453,1749924638824,-500.0,0.00016973,2]
[365803455,1749924638833,-500.0,0.00016973,2]
[365803457,1749924638851,-500.0,0.00016973,2]
[365803458,1749924638860,-500.0,0.00016973,2]
[365803460,1749924638869,-504.45302218,0.00016973,2]
[365803462,1749924638879,-500.0,0.00016973,2]
[365803464,1749924638889,-544.3550376,0.00016973,2]
[365803466,1749924638898,-500.0,0.00016973,2]
[365803468,1749924638907,-500.0,0.00016973,2]
[365803470,1749924638916,-3171.30005737,0.0001698,2]
[365803472,1749924638925,-164.0,0.00016986,2]
[365803474,1749924638934,-1000.0,0.00016997,2]
[365803476,1749924638944,-43907.8199999,0.00016997,2]
[365803478,1749924638953,-18249.3597468,0.00016997,2]
[365803480,1749924638962,-4140.8564273,0.00016997,2]
[365803482,1749924638972,-69222.8023333,0.00016997,2]
[365803484,1749924638982,-7684.75618996,0.00016997,2]
[365803610,1749924640383,-853.0,0.00016899,2]
[365803612,1749924640396,-1817.88702664,0.00016997,2]
[365803614,1749924640406,-1000.0,0.00016999,2]
[365803616,1749924640416,-1000.0,0.00016999,2]
[365803618,1749924640425,-1000.0,0.00016999,2]
[365803620,1749924640434,-1000.0,0.00016999,2]
[365803622,1749924640444,-666.0,0.00016999,2]
[365803624,1749924640453,-300.0,0.00016999,2]
[365803626,1749924640463,-300.0,0.00016999,2]
[365803628,1749924640473,-666.0,0.00016999,2]
[365803630,1749924640482,-202.68385262,0.00016999,2]
[365803633,1749924640492,-150.0,0.00016999,2]
[365803634,1749924640501,-150.0,0.00016999,2]
[365803637,1749924640511,-295.1907986,0.00016999,2]
[365803639,1749924640521,-158.63247591,0.00016999,2]
[365803641,1749924640531,-200.0,0.00016999,2]
[365803643,1749924640544,-200.63288875,0.00016999,2]
[365803645,1749924640554,-1000.0,0.00016999,2]
[365803646,1749924640563,-150.0,0.00016999,2]
[365803649,1749924640573,-150.0,0.00016999,2]
[365803651,1749924640583,-150.0,0.00016999,2]
[365803652,1749924640592,-500.0,0.00016999,2]
[365803655,1749924640602,-172.55,0.00016999,2]
[365803657,1749924640612,-500.0,0.00016999,2]
[365803659,1749924640622,-300.0,0.00016999,2]
[365803661,1749924640632,-500.0,0.00016999,2]
[365803663,1749924640643,-203.6039194,0.00016999,2]
[365803665,1749924640652,-150.0,0.00016999,2]
[365803667,1749924640661,-300.0,0.00016999,2]
[365803669,1749924640670,-150.0,0.00016999,2]
[365803671,1749924640680,-150.0,0.00016999,2]
[365803673,1749924640689,-500.0,0.00016999,2]
[365803675,1749924640699,-150.0,0.00016999,2]
[365803677,1749924640708,-200.0,0.00016999,2]
[365803679,1749924640717,-150.0,0.00016999,2]
[365803681,1749924640727,-500.0,0.00016999,2]
[365803683,1749924640736,-208.10606919,0.00016999,2]
[365803685,1749924640746,-500.0,0.00016999,2]
[365803687,1749924640755,-500.0,0.00016999,2]
[365803689,1749924640764,-405.59124596,0.00016999,2]
[365803691,1749924640774,-334.37454839,0.00016999,2]
[365803693,1749924640783,-321.90591507,0.00016999,2]
[365803695,1749924640793,-500.0,0.00016999,2]
[365803697,1749924640803,-500.0,0.00016999,2]
[365803699,1749924640812,-500.0,0.00016999,2]
[365803701,1749924640822,-354.35570186,0.00016999,2]
[365803703,1749924640831,-500.0,0.00016999,2]
[365803705,1749924640840,-500.0,0.00016999,2]
[365803706,1749924640849,-264.6170604,0.00016999,2]
[365803709,1749924640858,-342.71381464,0.00016999,2]
[365803711,1749924640868,-500.0,0.00016999,2]
[365803712,1749924640878,-500.0,0.00016999,2]
[365803714,1749924640889,-589.26273445,0.00016999,2]
[365803716,1749924640898,-500.0,0.00016999,2]
[365803718,1749924640908,-500.0,0.00016999,2]
[365803720,1749924640917,-500.0,0.00016999,2]
[365803722,1749924640927,-494.98419481,0.00016999,2]
[365803725,1749924640936,-431.47953022,0.00016999,2]
[365803726,1749924640945,-150.0,0.00016999,2]
[365803728,1749924640955,-150.0,0.00016999,2]
[365803730,1749924640964,-150.0,0.00016999,2]
[365803733,1749924640974,-150.0,0.00016999,2]
[365803735,1749924640983,-150.0,0.00016999,2]
[365803737,1749924640992,-150.0,0.00016999,2]
[365803739,1749924641001,-593.0,0.00017,2]
[365803741,1749924641010,-1991.37806933,0.00017,2]
[365803743,1749924641019,-397386.04457899,0.00017,2]
[365803745,1749924641029,-55230.61043533,0.00017,2]
[365803747,1749924641042,-315121.0025992,0.00017,2]
[365803749,1749924641058,-2451.20642574,0.00017,2]
[365803752,1749924641069,-384.8798523,0.00017,2]
[365803754,1749924641080,-175282.66843795,0.00017,2]
[365803756,1749924641090,-150.0,0.00017,2]
[365803758,1749924641099,-573.86816151,0.00017,2]
[365803760,1749924641108,-66292.431407,0.00017,2]
[365803763,1749924641123,-2720.8303093,0.00017,2]
[365803970,1749924643282,-150.0,0.00016999,2]
[365803973,1749924643292,-764.04186513,0.00017,2]
[365804215,1749924646007,-716272.3360852,0.00017,2]
[365804216,1749924646060,-109858.4757908,0.00017,2]
[365804217,1749924646115,-340646.68243822,0.00017,2]
[365804218,1749924646127,-79047.69224636,0.00017,2]
[365804227,1749924799905,462.22,0.00013699,2]
[365804229,1749924807873,500.0,0.00024999,120]
[365804230,1749924898441,59382.0,0.00016,2]
[365804231,1749925011708,260.22,0.00015915,2]
[365804232,1749925047290,23900.0,0.00015919,2]
[365804233,1749925092274,201.0,0.0001508,2]
[365804234,1749925092546,201.0,0.00015628,2]
[365804235,1749925121878,202.0,0.0001508,2]
[365804236,1749925127363,250.0,0.00015918,2]
[365804237,1749925451767,201.0,0.00015176,2]
[365804238,1749925452016,201.0,0.00015736,2]
[365804239,1749925481479,202.0,0.00015176,2]
[365804240,1749925516122,837670.94183915,0.00016001,2]
[365804241,1749925577154,1409.42,0.00013982,2]
[365804242,1749925620744,579.19,0.00015884,2]
[365804255,1749925758470,666.0,0.00015879,2]
[365804262,1749925781558,201.0,0.00015296,2]
[365804263,1749925781831,201.0,0.0001587,2]
[365804267,1749925828872,157.33,0.00015862,2]
[365804269,1749925832150,-168.16,0.00016024,2]
[365804271,1749925832160,-300.0,0.00016025,2]
[365804273,1749925832170,-250.0,0.00016025,2]
[365804275,1749925832180,-300.0,0.0001603,2]
[365804277,1749925832190,-250.0,0.0001603,2]
[365804278,1749925832200,-500.0,0.00016165,2]
[365804279,1749925832209,-500.0,0.00016165,2]
[365804280,1749925832219,-152.0,0.00016241,3]
[365804281,1749925832229,-1409.42,0.00016246,2]
[365804282,1749925832239,-201.0,0.00016443,3]
[365804283,1749925832248,-1000.0,0.00016453,2]
[365804284,1749925832258,-833.63237626,0.00016728,2]
[365804285,1749925832267,-178.0,0.00016761,2]
[365804286,1749925832277,-446.0,0.00016775,2]
[365804287,1749925832287,-1200.0,0.00016785,2]
[365804288,1749925832297,-868.22992952,0.00016786,2]
[365804289,1749925832307,-300.0,0.00016787,2]
[365804290,1749925832316,-1676.0,0.00016788,2]
[365804291,1749925832325,-588.0,0.000168,2]
[365804292,1749925832335,-296.0,0.0001684,2]
[365804293,1749925832345,-1957.856,0.00016842,2]
[365804294,1749925832355,-207.4,0.00016842,2]
[365804295,1749925832367,-906.09222139,0.00016852,2]
[365804296,1749925832376,-300.0,0.00016853,2]
[365804297,1749925832386,-2000.0,0.00016864,2]
[365804298,1749925832395,-151.0,0.00016887,2]
[365804299,1749925832405,-2030.296672,0.00016897,2]
[365804300,1749925832414,-19459.2636,0.00016897,2]
[365804301,1749925832424,-5000.0,0.00016897,2]
[365804302,1749925832433,-2500.0,0.00016897,2]
[365804303,1749925832442,-790.654,0.00016897,2]
[365804304,1749925832452,-328.67580169,0.00016898,2]
[365804305,1749925832461,-5094.47764728,0.00016898,2]
[365804306,1749925832471,-5094.47764719,0.00016898,2]
[365804307,1749925832481,-5094.47764719,0.00016898,2]
[365804308,1749925832490,-5094.47764719,0.00016899,2]
[365804309,1749925832500,-5094.47764719,0.00016899,2]
[365804310,1749925832510,-5094.47764719,0.00016899,2]
[365804311,1749925832520,-5094.47764719,0.00016899,2]
[365804312,1749925832529,-5094.47764719,0.000169,2]
[365804313,1749925832540,-5094.47764719,0.000169,2]
[365804314,1749925832550,-15534.34638868,0.000169,2]
[365804315,1749925832559,-250.77714422,0.000169,2]
[365804316,1749925832569,-4702.93764533,0.000169,2]
[365804317,1749925832579,-5094.47764719,0.000169,2]
[365804318,1749925832589,-182.69996732,0.000169,2]
[365804319,1749925832599,-189.76592966,0.000169,2]
[365804320,1749925832608,-358.82606276,0.000169,2]
[365804321,1749925832620,-1000.0,0.000169,2]
[365804322,1749925832630,-367.10033876,0.000169,2]
[365804323,1749925832639,-595.23587798,0.00016973,2]
[365804325,1749925832649,-500.0,0.00016973,2]
[365804327,1749925832658,-375.26785103,0.00016973,2]
[365804329,1749925832668,-501.90508859,0.00016973,2]
[365804331,1749925832678,-501.04347227,0.00016973,2]
[365804333,1749925832687,-500.0,0.00016973,2]
[365804335,1749925832697,-500.0,0.00016973,2]
[365804336,1749925832706,-152.32648016,0.00016973,2]
[365804338,1749925832715,-500.0,0.00016973,2]
[365804339,1749925832725,-500.0,0.00016973,2]
[365804340,1749925832734,-506.50685085,0.00016973,2]
[365804341,1749925832743,-62956.99607779,0.0001699,2]
[365804342,1749925832756,-663.23,0.0001699,2]
[365804343,1749925832767,-3023.58337672,0.0001699,2]
[365804344,1749925832779,-452.46449175,0.0001699,2]
[365804345,1749925832795,-1745.92429881,0.0001699,2]
[365804348,1749925838181,-150.0,0.00016443,2]
[365804349,1749925838191,-364.06266125,0.00016721,2]
[365804692,1749925841747,-216.74360771,0.00016721,2]
[365804695,1749925841757,-23737.47960046,0.0001699,2]
[365804697,1749925841767,-152.0,0.00016993,4]
[365804698,1749925841776,-1000.0,0.00016996,2]
[365804700,1749925841786,-46877.332,0.00016998,2]
[365804703,1749925841796,-73617.9514205,0.00016998,2]
[365804705,1749925841806,-4138.0117992,0.00016998,2]
[365804707,1749925841815,-2274.9980385,0.00016998,2]
[365804708,1749925841825,-1000.0,0.00016999,2]
[365804710,1749925841834,-1000.0,0.00016999,2]
[365804712,1749925841843,-1000.0,0.00016999,2]
[365804714,1749925841853,-150.0,0.00016999,2]
[365804717,1749925841863,-150.0,0.00016999,2]
[365804719,1749925841872,-150.0,0.00016999,2]
[365804721,1749925841881,-150.0,0.00016999,2]
[365804723,1749925841890,-150.0,0.00016999,2]
[365804725,1749925841899,-150.0,0.00016999,2]
[365804727,1749925841909,-150.0,0.00016999,2]
[365804729,1749925841918,-165.36,0.00016999,2]
[365804730,1749925841927,-207.58129561,0.00016999,2]
[365804732,1749925841937,-500.0,0.00016999,2]
[365804733,1749925841946,-150.0,0.00016999,2]
[365804734,1749925841955,-150.0,0.00016999,2]
[365804735,1749925841965,-150.0,0.00016999,2]
[365804736,1749925841975,-500.0,0.00016999,2]
[365804737,1749925841984,-150.0,0.00016999,2]
[365804738,1749925841994,-150.0,0.00016999,2]
[365804739,1749925842003,-500.0,0.00016999,2]
[365804740,1749925842013,-150.0,0.00016999,2]
[365804741,1749925842022,-500.0,0.00016999,2]
[365804742,1749925842032,-307.37284192,0.00016999,2]
[365804743,1749925842042,-349.54548526,0.00016999,2]
[365804744,1749925842052,-1160.0,0.00016999,2]
[365804745,1749925842061,-493.591,0.00016999,2]
[365804747,1749925842070,-155.0,0.00016999,2]
[365804749,1749925842079,-1641.826,0.00016999,2]
[365804751,1749925842089,-4087.0,0.00016999,2]
[365804753,1749925842099,-853.0,0.00016999,2]
[365804755,1749925842109,-538.0,0.00017,2]
[365804757,1749925842118,-995.68903466,0.00017,2]
[365804759,1749925842132,-72380.48588264,0.00017,2]
[365804772,1749925842249,208.0,0.00015296,2]
[365804913,1749925843359,-889.77323113,0.00017,2]
[365804916,1749925843372,-125422.76317572,0.00017,2]
[365804919,1749925843381,-81428.43605248,0.00017,2]
[365804924,1749925843393,-1000.0,0.00017,2]
[365804939,1749925843521,-1664.1,0.00017,2]
[365805208,1749925846149,-507.28943559,0.00016893,2]
[365805210,1749925846158,-326.44607236,0.000169,2]
[365805212,1749925846168,-49855.84899469,0.00017,2]
[365805214,1749925846177,-1000.0,0.00017,2]
[365805216,1749925846187,-13192.62242699,0.00017,2]
[365805224,1749925846257,-1887.93116305,0.00017,2]
[365805231,1749925846315,-623.04007,0.00017,2]
[365805233,1749925846329,-355.66033065,0.00017,2]
[365805235,1749925846341,-664.25,0.00017,2]
[365805238,1749925846352,-623.97813455,0.00017,2]
[365805241,1749925846371,-11213.45072545,0.00017,2]
[365805280,1749925846429,-60370.88397636,0.00017,2]
[365805286,1749925846783,-2172.91492049,0.00017,2]
[365805288,1749925846794,-1205.09999248,0.00017,2]
[365805290,1749925846806,-5229.0,0.00017,2]
[365805445,1749925895415,439.1,0.00013699,2]
[365805447,1749926321444,250.0,0.00015814,2]
[365805448,1749926328031,201.5,0.00020001,30]
[365805449,1749926401365,200.0,0.00015823,2]
[365805450,1749926507165,201.0,0.00015016,2]
[365805451,1749926507434,201.0,0.00015585,2]
[365805452,1749926542466,1320.52,0.00013704,2]
[365805453,1749926542810,1320.52,0.00015968,2]
[365805455,1749926561283,202.0,0.00015016,2]
[365805456,1749926574055,152.33,0.00015574,2]
[365805457,1749926714634,201.0,0.00015016,2]
[365805471,1749926844278,742.11,0.00015692,2]
[365805472,1749926861587,201.0,0.00015155,2]
[365805473,1749926861853,201.0,0.00015737,2]
[365805474,1749926921394,202.0,0.00015155,2]
[365805478,1749927031432,-200.0,0.00016004,7]
[365805479,1749927031441,-300.0,0.00016004,2]
[365805480,1749927031451,-41.44437633,0.00016004,2]
[365805481,1749927031488,-208.55562367,0.00016004,2]
[365805482,1749927031498,-300.0,0.00016004,2]
[365805483,1749927031507,-250.0,0.00016005,2]
[365805484,1749927031516,-29.16974742,0.00016005,2]
[365805485,1749927031529,-270.83025258,0.00016005,2]
[365805486,1749927031538,-600.0,0.00016007,4]
[365805487,1749927031551,-300.0,0.00016029,2]
[365805488,1749927031560,-125.32885599,0.00016029,2]
[365805489,1749927031571,-174.67114401,0.00016029,2]
[365805490,1749927031584,-1200.0,0.00016029,2]
[365805491,1749927031593,-20264.38737435,0.0001603,2]
[365805492,1749927031604,-850.0,0.0001603,2]
[365805493,1749927031615,-602.69613387,0.0001603,2]
[365805757,1749927036946,1000.0,0.00015818,2]
[365805762,1749927037539,-1532.84770472,0.0001603,2]
[365805763,1749927037551,-650.06878706,0.0001603,2]
[365805764,1749927037562,-219.47,0.00016041,2]
[365805765,1749927037571,-84.29005495,0.00016045,2]
[365805766,1749927037595,-163.54994505,0.00016045,2]
[365805767,1749927037605,-251.73,0.00016045,2]
[365805768,1749927037615,-253.83,0.00016045,2]
[365805769,1749927037626,-250.44,0.00016045,2]
[365805770,1749927037636,-253.34,0.00016045,2]
[365805772,1749927037645,-111.21291838,0.00016048,2]
[365805954,1749927039392,-137.07708162,0.00016048,2]
[365805957,1749927039404,-251.86,0.00016048,2]
[365805959,1749927039414,-250.8,0.00016048,2]
[365805961,1749927039423,-254.57,0.00016048,2]
[365805963,1749927039433,-248.91,0.00016103,2]
[365805965,1749927039442,-245.24,0.00016103,2]
[365805967,1749927039451,-251.25,0.00016103,2]
[365805969,1749927039461,-253.72,0.00016103,2]
[365805971,1749927039470,-250.43,0.00016103,2]
[365805973,1749927039479,-252.78,0.00016103,2]
[365805975,1749927039488,-252.61,0.00016103,2]
[365805977,1749927039496,-245.74,0.00016103,2]
[365805978,1749927039506,-247.29,0.00016103,2]
[365805980,1749927039516,-248.7,0.00016103,2]
[365805983,1749927039526,-245.37,0.00016103,2]
[365805985,1749927039535,-249.1,0.00016103,2]
[365805986,1749927039544,-248.34,0.00016103,2]
[365805988,1749927039553,-249.07,0.00016103,2]
[365805990,1749927039562,-151.0,0.00016149,2]
[365805992,1749927039571,-1957.856,0.00016149,2]
[365805994,1749927039585,-207.4,0.00016149,2]
[365805996,1749927039594,-500.0,0.00016165,2]
[365805998,1749927039603,-500.0,0.00016165,2]
[365806000,1749927039612,-166.71,0.00016175,2]
[365806002,1749927039622,-2030.296672,0.00016204,2]
[365806004,1749927039631,-2105.41764886,0.00016259,2]
[365806006,1749927039640,-201.0,0.0001632,3]
[365806008,1749927039651,-170.2,0.00016431,2]
[365806010,1749927039661,-797.31,0.00016442,2]
[365806012,1749927039670,-797.31,0.00016442,2]
[365806014,1749927039679,-797.31,0.00016442,2]
[365806016,1749927039689,-5563.0,0.000165,3]
[365806018,1749927039698,-469.0,0.0001652,2]
[365806020,1749927039707,-780.0,0.00016537,2]
[365806022,1749927039716,-152.0,0.00016554,2]
[365806024,1749927039725,-746.0,0.0001657,2]
[365806026,1749927039735,-5563.0,0.000168,5]
[365806028,1749927039743,-299.0,0.00016827,2]
[365806030,1749927039753,-222.0,0.00016839,2]
[365806032,1749927039762,-626.0,0.00016852,2]
[365806034,1749927039771,-2000.0,0.00016864,2]
[365806036,1749927039781,-896.074,0.00016896,2]
[365806038,1749927039790,-154.11548793,0.00016899,2]
[365806040,1749927039799,-154.11548793,0.000169,2]
[365806042,1749927039809,-154.11548793,0.000169,2]
[365806044,1749927039819,-2978.61618923,0.000169,2]
[365806047,1749927039839,-2778.62021077,0.000169,2]
[365806049,1749927039848,-154.11548793,0.000169,2]
[365806051,1749927039857,-154.11548793,0.000169,2]
[365806053,1749927039866,-281.72211576,0.000169,2]
[365806054,1749927039876,-3533.4369,0.000169,2]
[365806056,1749927039886,-330.39030492,0.000169,2]
[365806058,1749927039895,-219.43000121,0.000169,2]
[365806061,1749927039907,-784.48033572,0.000169,2]
[365806063,1749927039916,-350.5753567,0.000169,2]
[365806066,1749927039926,-179.38385656,0.000169,2]
[365806068,1749927039935,-4244.25874376,0.000169,2]
[365806070,1749927039944,-239.21737518,0.000169,2]
[365806071,1749927039954,-182.6999673,0.000169,2]
[365806073,1749927039963,-201.0,0.00016902,4]
[365806076,1749927039973,-833.63237626,0.00016956,2]
[365806077,1749927039982,-500.0,0.00016973,2]
[365806079,1749927039991,-500.0,0.00016973,2]
[365806081,1749927040000,-500.0,0.00016973,2]
[365806083,1749927040010,-500.0,0.00016973,2]
[365806085,1749927040019,-715.3577764,0.00016975,2]
[365806087,1749927040028,-168.0,0.00016975,2]
[365806089,1749927040037,-237.0,0.00016986,2]
[365806091,1749927040046,-173.89,0.0001699,2]
[365806093,1749927040055,-173.89,0.0001699,2]
[365806095,1749927040064,-3088.2217039,0.00016998,2]
[365806097,1749927040073,-379.16634001,0.00016998,2]
[365806099,1749927040082,-34507.24888604,0.00016998,2]
[365806102,1749927040097,-454.84017085,0.00016998,2]
[365806281,1749927041972,201.0,0.00015155,2]
[365806348,1749927042555,-1154.64349018,0.00016998,2]
[365806355,1749927042623,-3612.86433108,0.00016998,2]
[365806361,1749927042667,-962.58590906,0.00016998,2]
[365806629,1749927045315,-12312.72521279,0.00016998,2]
[365806632,1749927045324,-583.3803776,0.00016998,2]
[365806635,1749927045334,-1955.6318565,0.00016998,2]
[365806638,1749927045343,-3091.1972269,0.00016998,2]
[365806641,1749927045353,-191.7143262,0.00016999,2]
[365806654,1749927045475,-124.4947738,0.00016999,2]
[365806656,1749927045485,-200.6622853,0.00016999,2]
[365806894,1749927162792,-500.0,0.00016165,2]
[365806895,1749927162815,-250.0,0.00016173,2]
[365806896,1749927162838,-300.0,0.00016173,2]
[365806897,1749927162860,-521.22,0.00016182,2]
[365806898,1749927162883,-666.0,0.00016233,2]
[365806899,1749927162906,-165.79,0.00016243,2]
[365806900,1749927162931,-168.0,0.0001661,2]
[365806901,1749927162955,-168.0,0.00016752,2]
[365806902,1749927162979,-1000.0,0.00016898,2]
[365806903,1749927163001,-1430.2148,0.00016898,2]
[365806904,1749927163024,-300.0,0.00016899,2]
[365806905,1749927163045,-600.0,0.00016899,2]
[365806906,1749927163067,-233.71690446,0.000169,2]
[365806907,1749927163089,-179.38385654,0.000169,2]
[365806908,1749927163111,-2829.50582918,0.000169,2]
[365806909,1749927163134,-192.00125105,0.000169,2]
[365806910,1749927163155,-159.47825012,0.000169,2]
[365806911,1749927163178,-5000.0,0.000169,2]
[365806912,1749927163203,-1979.54527532,0.000169,2]
[365806913,1749927163234,-15618.90692468,0.000169,2]
[365806914,1749927163259,-462.34646382,0.000169,2]
[365806915,1749927163284,-168.0,0.00016919,2]
[365806916,1749927163306,-393.60277817,0.00016933,2]
[365806917,1749927163334,-629.39722183,0.00016933,2]
[365806918,1749927163356,-500.0,0.00016973,2]
[365806919,1749927163379,-500.0,0.00016973,2]
[365806920,1749927163402,-500.0,0.00016973,2]
[365806921,1749927163424,-151.0,0.0001699,2]
[365806922,1749927163448,-1000.0,0.0001699,2]
[365806923,1749927163472,-1957.856,0.0001699,2]
[365806924,1749927163495,-500.0,0.0001699,2]
[365806925,1749927163520,-500.0,0.0001699,2]
[365806926,1749927163544,-359.23790398,0.0001699,2]
[365806927,1749927163566,-207.4,0.0001699,2]
[365806928,1749927163588,-151.0,0.0001699,2]
[365806929,1749927163610,-195.44589601,0.0001699,2]
[365806930,1749927163637,-300.0,0.00016998,2]
[365806931,1749927163662,-550.0,0.00016998,2]
[365806932,1749927163685,-3205.6302781,0.00016998,2]
[365806933,1749927163709,-1002.30771141,0.00016998,2]
[365806934,1749927163731,-4433.58115534,0.00016999,2]
[365806935,1749927163760,-8037.60655936,0.00016999,2]
[365806936,1749927163782,-1000.0,0.00016999,2]
[365806937,1749927163805,-150.0,0.00016999,2]
[365806938,1749927163826,-150.0,0.00016999,2]
[365806939,1749927163850,-150.0,0.00016999,2]
[365806940,1749927163873,-150.0,0.00016999,2]
[365806941,1749927163896,-150.0,0.00016999,2]
[365806942,1749927163919,-150.0,0.00016999,2]
[365806943,1749927163942,-150.0,0.00016999,2]
[365806944,1749927163964,-1000.0,0.00016999,2]
[365806945,1749927163985,-263.89548944,0.00016999,2]
[365806946,1749927164007,-207.58129561,0.00016999,2]
[365806947,1749927164030,-150.0,0.00016999,2]
[365806948,1749927164051,-150.0,0.00016999,2]
[365806949,1749927164073,-500.0,0.00016999,2]
[365806950,1749927164096,-150.0,0.00016999,2]
[365806951,1749927164119,-165.36,0.00016999,2]
[365806952,1749927164140,-666.0,0.00016999,2]
[365806953,1749927164161,-300.0,0.00016999,2]
[365806954,1749927164185,-307.37284192,0.00016999,2]
[365806955,1749927164210,-500.0,0.00016999,2]
[365806956,1749927164234,-351.65767109,0.00016999,2]
[365806957,1749927164258,-500.0,0.00016999,2]
[365806958,1749927164282,-442.32986119,0.00016999,2]
[365806959,1749927164305,-500.0,0.00016999,2]
[365806960,1749927164328,-401.05244806,0.00016999,2]
[365806961,1749927164369,-98.94755194,0.00016999,2]
[365806962,1749927164395,-500.0,0.00016999,2]
[365806963,1749927164420,-500.0,0.00016999,2]
[365806964,1749927164718,-500.0,0.00016999,2]
[365806965,1749927164763,-158.56807054,0.00016999,2]
[365806966,1749927164785,-235.43239541,0.00016999,2]
[365806967,1749927164811,-251.17701298,0.00016999,2]
[365806968,1749927164834,-500.0,0.00016999,2]
[365806969,1749927164856,-500.0,0.00016999,2]
[365806970,1749927164882,-300.0,0.00016999,2]
[365806971,1749927164904,-2814.187,0.00016999,2]
[365806972,1749927164927,-1641.826,0.00016999,2]
[365806973,1749927164950,-853.0,0.00016999,2]
[365806974,1749927164972,-155.0,0.00016999,2]
[365806975,1749927164994,-4087.0,0.00016999,2]
[365806976,1749927165018,-493.591,0.00016999,2]
[365806977,1749927165040,-1160.0,0.00016999,2]
[365806978,1749927165062,-150.0,0.00016999,2]
[365806979,1749927165083,-150.0,0.00016999,2]
[365806980,1749927165106,-995.68903466,0.00016999,2]
[365806981,1749927165131,-598.43810114,0.00016999,2]
[365806982,1749927165164,-16642.85616667,0.00016999,2]
[365806983,1749927165196,-16642.85616667,0.00016999,2]
[365806984,1749927165231,-16642.85616667,0.00016999,2]